bitfinex/quotes_SOLUSD_20240713
["timestamp","ask_amount","ask_price","bid_price","bid_amount"]
[1720891933031,4.16188148,139.96,139.94,14.72]
[1720891933229,4.16188148,139.97,139.95,14.72]
[1720891933631,4.1622453,139.96,139.95,14.72]
[1720891934350,4.1622404,139.96,139.95,14.72]
[1720891935530,8.79354814,140.0,139.95,14.72]
[1720891935864,4.16528557,139.99,139.98,14.72]
[1720891936027,8.79354814,140.04,139.98,14.72]
[1720891936237,4.17335067,140.03,139.97,6.046]
[1720891936427,50.35725541,140.07,139.97,6.046]
[1720891936428,50.35725541,140.07,140.02,14.72]
[1720891936629,50.35725541,140.07,140.03,14.72]
[1720891936630,4.17499627,140.06,140.03,14.72]
[1720891936837,4.17499627,140.05,140.03,14.72]
[1720891937032,4.17499627,140.06,140.03,14.72]
[1720891937249,50.35725541,140.07,140.03,14.72]
[1720891937453,50.35725541,140.07,139.99,15.5261]
[1720891937751,4.17829188,140.06,140.02,14.72]
[1720891937955,50.35725541,140.07,140.02,14.72]
[1720891938955,24.72,140.05,139.99,15.5261]
[1720891939150,24.72,140.05,139.98,14.72]
[1720891939151,59.72,140.04,139.98,14.72]
[1720891939351,59.72,140.04,139.99,14.72]
[1720891939550,45.0,140.04,140.0,14.72]
[1720891940540,59.72,140.04,139.96,15.5261]
[1720891940735,59.72,140.04,139.99,14.72]
[1720891941172,45.0,140.04,140.0,14.72]
[1720891941659,45.0,140.04,140.01,14.72]
[1720891942136,45.0,140.04,140.02,14.72]
[1720891943138,45.0,140.04,139.96,15.5261]
[1720891943339,45.0,140.05,140.01,14.72]
[1720891943841,45.0,140.05,140.0,14.72]
[1720891944050,55.0,140.05,139.96,15.5261]
[1720891944353,14.72,140.04,139.98,14.72]
[1720891944546,45.0,140.03,139.98,14.72]
[1720891944943,59.72,140.03,139.98,14.72]
[1720891949537,10.0,140.01,139.93,6.046]
[1720891949737,45.0,140.0,139.97,14.72]
[1720891949942,45.0,140.0,139.96,14.72]
[1720891950137,45.0,140.0,139.93,6.046]
[1720891950350,45.0,140.0,139.97,14.72]
[1720891950947,45.0,140.0,139.96,14.72]
[1720891952848,45.0,140.01,139.96,14.72]
[1720891953173,45.0,140.01,139.97,14.72]
[1720891953866,45.0,140.02,139.98,14.72]
[1720891954960,45.0,140.02,139.97,14.72]
[1720891955563,45.0,140.02,139.98,14.72]
[1720891957954,45.0,140.02,139.97,14.72]
[1720891958870,59.72,140.02,139.97,14.72]
[1720891959351,59.72,140.02,139.96,14.72]
[1720891959352,10.0,140.01,139.96,14.72]
[1720891959547,45.0,140.0,139.96,14.72]
[1720891962262,14.72,140.02,139.97,14.72]
[1720891962446,32.806,140.03,139.98,14.72]
[1720891962646,45.0,140.02,139.98,14.72]
[1720891963686,45.0,140.02,139.97,14.72]
[1720891967377,59.72,140.02,139.96,14.72]
[1720891967572,45.0,140.02,139.97,14.72]
[1720891967877,6.4992,140.03,139.99,14.72]
[1720891969155,10.0,140.05,139.99,14.72]
[1720891969487,45.0,140.04,140.0,14.72]
[1720891975165,15.3037,140.06,140.02,14.72]
[1720891975383,45.0,140.05,140.02,14.72]
[1720891975678,45.0,140.06,140.02,14.72]
[1720891978067,45.0,140.06,139.97,15.8792]
[1720891978265,45.0,140.06,140.02,14.72]
[1720891978870,45.0,140.06,140.01,14.72]
[1720891979674,45.0,140.06,140.02,14.72]
[1720891981495,4.17544336,140.05,140.02,14.72]
[1720891981784,45.0,140.06,140.02,14.72]
[1720891981995,4.17548178,140.05,140.02,14.72]
[1720891982166,45.0,140.06,140.02,14.72]
[1720891982366,4.17533221,140.05,140.02,14.72]
[1720891982590,45.0,140.06,140.02,14.72]
[1720891982798,4.17528026,140.05,140.02,14.72]
[1720891983110,45.0,140.06,140.02,14.72]
[1720891983309,4.17424409,140.05,140.02,14.72]
[1720891983490,45.0,140.06,140.02,14.72]
[1720891983692,4.17401636,140.05,140.02,14.72]
[1720891983909,45.0,140.06,140.02,14.72]
[1720891984219,4.17420155,140.05,140.02,14.72]
[1720891984402,45.0,140.06,140.02,14.72]
[1720891990594,45.0,140.06,139.97,15.8792]
[1720891990799,28.89361212,140.05,139.97,15.8792]
[1720891991015,45.0,140.04,139.99,14.72]
[1720891991605,45.0,140.04,140.01,14.72]
[1720891991804,45.0,140.05,140.02,14.72]
[1720891991998,45.0,140.06,140.02,14.72]
[1720891994493,45.0,140.06,140.03,14.72]
[1720892002259,10.0,140.09,140.02,16.1138]
[1720892002467,4.17853083,140.08,140.05,14.72]
[1720892002728,10.0,140.11,140.05,14.72]
[1720892002901,4.17853758,140.1,140.06,14.72]
[1720892003100,4.17853758,140.09,140.06,14.72]
[1720892003296,4.17853758,140.1,140.06,14.72]
[1720892003525,4.17853758,140.09,140.06,14.72]
[1720892003693,4.17957865,140.08,140.06,14.72]
[1720892003896,24.72,140.11,140.06,14.72]
[1720892004096,49.18039757,140.1,140.06,14.72]
[1720892004321,4.18039757,140.09,140.05,14.72]
[1720892004526,4.18039757,140.08,140.04,14.72]
[1720892004701,68.51354814,140.1,140.04,14.72]
[1720892004902,18.89884726,140.09,140.04,14.72]
[1720892005101,18.89884726,140.08,140.02,16.1138]
[1720892005304,49.17884726,140.07,140.02,16.1138]
[1720892005511,55.0,140.07,140.02,30.8338]
[1720892005709,69.72,140.07,140.02,30.8338]
[1720892005911,4.1759839,140.06,140.02,30.8338]
[1720892006098,69.72,140.07,140.02,30.8338]
[1720892006296,4.17598128,140.06,140.02,30.8338]
[1720892006493,59.72,140.07,140.02,30.8338]
[1720892006694,4.17583921,140.06,140.02,30.8338]
[1720892007012,45.0,140.07,140.02,30.8338]
[1720892007222,4.17595237,140.06,140.03,14.72]
[1720892007527,45.0,140.07,140.03,14.72]
[1720892007703,4.17607768,140.06,140.03,14.72]
[1720892007903,45.0,140.07,140.03,14.72]
[1720892008113,4.17612372,140.06,140.03,14.72]
[1720892008333,45.0,140.07,140.03,14.72]
[1720892008507,4.1762367,140.06,140.02,16.1138]
[1720892008709,8.79354814,140.09,140.05,14.72]
[1720892008925,14.17856691,140.08,140.02,16.1138]
[1720892009224,49.17856691,140.07,140.02,30.8338]
[1720892009392,4.17856691,140.06,140.02,30.8338]
[1720892009599,45.0,140.07,140.02,30.8338]
[1720892010605,45.0,140.07,139.99,16.1138]
[1720892010832,45.0,140.07,140.02,14.72]
[1720892011644,59.72,140.07,140.02,14.72]
[1720892012543,4.17755156,140.06,140.02,14.72]
[1720892012707,59.72,140.07,140.02,14.72]
[1720892012908,4.17769397,140.06,140.02,14.72]
[1720892013109,59.72,140.07,140.02,14.72]
[1720892013316,4.17828546,140.06,140.02,14.72]
[1720892013721,59.72,140.07,140.02,14.72]
[1720892014035,4.17827628,140.06,140.02,14.72]
[1720892014205,45.0,140.07,140.02,14.72]
[1720892014410,4.1782789,140.06,140.02,14.72]
[1720892014713,45.0,140.07,140.02,14.72]
[1720892014912,4.17826728,140.06,140.02,14.72]
[1720892015212,45.0,140.07,140.02,14.72]
[1720892015525,4.17885779,140.06,140.02,14.72]
[1720892015728,45.0,140.07,140.02,14.72]
[1720892016243,45.0,140.07,140.03,14.72]
[1720892016825,45.0,140.08,140.03,14.72]
[1720892017040,45.0,140.08,140.04,14.72]
[1720892017216,4.17890661,140.07,140.04,14.72]
[1720892017415,45.0,140.09,140.04,14.72]
[1720892017715,4.17878108,140.08,140.04,14.72]
[1720892017928,4.17878108,140.07,139.99,16.1138]
[1720892018132,59.72,140.09,140.03,14.72]
[1720892018311,4.17930996,140.08,140.03,14.72]
[1720892018512,4.17930996,140.07,140.03,14.72]
[1720892018711,59.72,140.09,140.03,14.72]
[1720892019029,4.17930913,140.08,140.03,14.72]
[1720892019327,4.17930913,140.07,140.03,14.72]
[1720892019534,4.17930913,140.08,140.03,14.72]
[1720892019838,4.1794972,140.07,140.03,14.72]
[1720892020016,59.72,140.09,140.03,14.72]
[1720892020219,4.17949688,140.08,140.03,14.72]
[1720892020412,4.17913572,140.07,140.03,14.72]
[1720892020619,59.72,140.09,140.03,14.72]
[1720892020819,4.18003527,140.08,140.03,14.72]
[1720892021041,4.18003527,140.07,140.03,14.72]
[1720892021229,59.72,140.09,140.03,14.72]
[1720892021541,4.18021604,140.08,140.03,14.72]
[1720892021740,4.18021604,140.07,140.03,14.72]
[1720892021945,59.72,140.09,140.03,14.72]
[1720892022245,4.1794745,140.08,140.03,14.72]
[1720892022420,4.1794745,140.07,140.03,14.72]
[1720892022739,45.0,140.09,140.04,14.72]
[1720892022942,4.18136086,140.08,140.04,14.72]
[1720892023243,45.0,140.09,140.04,14.72]
[1720892023442,4.18136611,140.08,140.04,14.72]
[1720892023619,45.0,140.09,140.04,14.72]
[1720892023947,4.18209243,140.08,140.04,14.72]
[1720892024124,45.0,140.09,140.04,14.72]
[1720892024329,4.18204178,140.08,140.04,15.1631]
[1720892024645,19.65410714,140.12,140.07,14.72]
[1720892024867,4.18478118,140.11,140.06,14.72]
[1720892025143,4.18478118,140.1,140.06,14.72]
[1720892025317,4.18478118,140.09,140.06,14.72]
[1720892025520,4.18478118,140.1,140.06,14.72]
[1720892025720,4.18478118,140.09,140.06,14.72]
[1720892025943,4.18478118,140.11,140.06,14.72]
[1720892026129,4.18456978,140.1,140.06,14.72]
[1720892026331,4.18456978,140.09,140.06,14.72]
[1720892026531,4.18456978,140.11,140.06,14.72]
[1720892026845,4.18416118,140.1,140.06,14.72]
[1720892027046,34.37410714,140.12,140.07,14.72]
[1720892027364,49.18436275,140.11,140.07,14.72]
[1720892027648,4.18436275,140.1,140.07,14.72]
[1720892027847,45.0,140.11,140.07,14.72]
[1720892028028,4.18455719,140.1,140.07,14.72]
[1720892028216,45.0,140.11,140.07,14.72]
[1720892028539,4.18401615,140.1,140.07,14.72]
[1720892028724,45.0,140.11,140.07,14.72]
[1720892028925,4.18395892,140.1,140.07,14.72]
[1720892029236,45.0,140.11,140.07,14.72]
[1720892029435,4.18395667,140.1,140.07,14.72]
[1720892029637,45.0,140.11,140.07,14.72]
[1720892029837,4.18381192,140.1,140.08,14.72]
[1720892030136,4.18381192,140.1,140.04,15.1631]
[1720892030137,0.860559,140.12,140.09,14.72]
[1720892030320,4.1847339,140.11,140.1,1.42748355]
[1720892030512,0.860559,140.12,140.1,16.14748355]
[1720892031130,0.860559,140.12,140.11,16.14731642]
[1720892032041,0.860559,140.12,140.11,14.72]
[1720892033230,0.860559,140.12,140.09,15.1631]
[1720892033429,0.860559,140.12,140.1,14.72]
[1720892034422,0.860559,140.12,140.11,14.72]
[1720892040529,0.860559,140.12,140.09,15.1631]
[1720892040719,0.860559,140.12,140.11,14.72]
[1720892041043,0.860559,140.12,140.09,15.1631]
[1720892041044,0.860559,140.12,140.1,1.42746784]
[1720892041228,0.860559,140.12,140.11,14.72]
[1720892043333,0.860559,140.12,140.09,16.59049925]
[1720892043647,0.860559,140.12,140.11,14.72]
[1720892044045,0.860559,140.12,140.09,15.1631]
[1720892044235,0.860559,140.12,140.1,14.72]
[1720892044545,0.860559,140.12,140.11,14.72]
[1720892046931,0.860559,140.12,140.09,15.1631]
[1720892047130,0.860559,140.12,140.1,14.72]
[1720892049841,0.860559,140.12,140.09,15.1631]
[1720892050033,0.860559,140.12,140.09,29.8831]
[1720892050540,0.860559,140.12,140.1,14.72]
[1720892051933,0.860559,140.12,140.11,14.72]
[1720892057135,0.860559,140.12,140.09,15.1631]
[1720892057335,0.860559,140.12,140.11,14.72]
[1720892058951,0.860559,140.12,140.09,15.1631]
[1720892059151,0.860559,140.12,140.11,14.72]
[1720892065652,0.860559,140.12,140.11,16.14722429]
[1720892071864,0.860559,140.12,140.11,14.72]
[1720892072166,0.860559,140.12,140.11,59.72]
[1720892076454,0.860559,140.12,140.11,79.72]
[1720892077053,0.860559,140.12,140.11,20.0]
[1720892077254,0.860559,140.12,140.11,14.72]
[1720892077448,0.860559,140.12,140.11,34.72]
[1720892078450,0.860559,140.12,140.11,79.72]
[1720892079952,6.3873,140.2,140.11,86.898]
[1720892080156,6.3873,140.2,140.17,14.72]
[1720892081161,4.20207351,140.19,140.17,14.72]
[1720892081367,6.3873,140.2,140.16,14.72]
[1720892081770,6.3873,140.2,140.11,20.0]
[1720892081973,49.2019825,140.19,140.15,14.72]
[1720892082275,45.0,140.19,140.15,14.72]
[1720892082855,45.0,140.19,140.14,14.72]
[1720892084046,45.0,140.19,140.15,14.72]
[1720892085574,45.0,140.19,140.16,14.72]
[1720892085762,45.0,140.19,140.15,14.72]
[1720892086373,6.3873,140.2,140.16,14.72]
[1720892086961,45.0,140.19,140.16,14.72]
[1720892090573,45.0,140.19,140.15,14.72]
[1720892094322,45.0,140.19,140.1,20.0]
[1720892094620,59.72,140.19,140.14,14.72]
[1720892094816,45.0,140.19,140.14,14.72]
[1720892095517,59.72,140.19,140.14,14.72]
[1720892098103,10.0,140.16,140.09,15.1631]
[1720892098306,45.0,140.15,140.11,14.72]
[1720892098507,45.0,140.15,140.12,14.72]
[1720892099201,24.72,140.18,140.12,14.72]
[1720892099407,49.19894646,140.17,140.13,14.72]
[1720892099603,45.0,140.17,140.13,14.72]
[1720892099794,45.0,140.17,140.12,14.72]
[1720892100407,45.0,140.17,140.09,15.1631]
[1720892100408,4.19844776,140.16,140.09,15.1631]
[1720892100606,45.0,140.17,140.12,14.72]
[1720892100907,4.19813308,140.16,140.12,14.72]
[1720892101110,59.72,140.17,140.12,14.72]
[1720892101313,59.72,140.17,140.09,15.1631]
[1720892101501,16.4906,140.16,140.11,14.72]
[1720892101702,45.0,140.15,140.11,14.72]
[1720892101903,45.0,140.15,140.06,15.8533]
[1720892102210,59.72,140.15,140.1,14.72]
[1720892102409,45.0,140.15,140.11,14.72]
[1720892103097,45.0,140.15,140.12,14.72]
[1720892103294,45.0,140.15,140.11,14.72]
[1720892108227,45.0,140.15,140.1,14.72]
[1720892111128,16.4495,140.19,140.06,15.8533]
[1720892111300,4.19949427,140.18,140.15,14.72]
[1720892111500,16.4495,140.19,140.14,14.72]
[1720892111829,4.19994372,140.18,140.14,14.72]
[1720892112033,4.19951265,140.17,140.14,14.72]
[1720892112213,24.72,140.18,140.12,14.72]
[1720892112520,49.19950792,140.17,140.12,14.72]
[1720892112722,45.0,140.17,140.12,14.72]
[1720892112922,59.72,140.17,140.12,14.72]
[1720892113302,59.72,140.17,140.06,15.8533]
[1720892113498,59.72,140.17,140.12,14.72]
[1720892114735,45.0,140.17,140.13,14.72]
[1720892115026,16.4495,140.19,140.14,14.72]
[1720892115226,49.20036578,140.18,140.14,14.72]
[1720892115399,45.0,140.18,140.14,14.72]
[1720892116618,6.4906,140.2,140.16,14.72]
[1720892116824,49.20203237,140.19,140.16,14.72]
[1720892117127,45.0,140.19,140.16,14.72]
[1720892119921,40.2537,140.22,140.16,14.72]
[1720892120118,49.20213839,140.21,140.16,14.72]
[1720892120318,4.20213839,140.2,140.17,14.72]
[1720892120521,4.20213839,140.19,140.17,14.72]
[1720892120832,45.0,140.21,140.17,14.72]
[1720892121036,4.20243542,140.2,140.17,14.72]
[1720892121243,45.0,140.21,140.17,14.72]
[1720892121442,4.20243805,140.2,140.17,14.72]
[1720892121643,45.0,140.21,140.17,14.72]
[1720892121934,4.20163456,140.2,140.16,14.72]
[1720892122122,4.20163456,140.19,140.16,14.72]
[1720892122320,45.0,140.21,140.16,14.72]
[1720892122535,4.2017764,140.2,140.16,14.72]
[1720892122735,4.2017764,140.19,140.16,14.72]
[1720892123035,45.0,140.21,140.17,14.72]
[1720892123244,4.20217423,140.2,140.16,14.72]
[1720892123432,4.20217423,140.19,140.16,14.72]
[1720892123610,45.0,140.21,140.16,14.72]
[1720892123814,4.2017764,140.2,140.16,14.72]
[1720892124016,4.2017764,140.19,140.15,14.72]
[1720892124230,59.72,140.21,140.15,14.72]
[1720892124422,4.20171073,140.2,140.15,14.72]
[1720892124627,4.20171073,140.19,140.15,14.72]
[1720892124936,59.72,140.21,140.15,14.72]
[1720892125235,4.20171073,140.2,140.15,14.72]
[1720892125432,4.20171073,140.19,140.15,14.72]
[1720892125732,59.72,140.21,140.15,14.72]
[1720892126033,4.20180625,140.2,140.15,14.72]
[1720892126215,4.20180625,140.19,140.15,14.72]
[1720892126416,4.20180625,140.2,140.15,14.72]
[1720892126647,4.20170548,140.19,140.15,14.72]
[1720892126812,45.0,140.21,140.15,14.72]
[1720892127016,4.20170548,140.2,140.15,14.72]
[1720892127228,49.20170548,140.19,140.15,14.72]
[1720892127436,59.72,140.21,140.15,14.72]
[1720892127641,4.20177378,140.2,140.15,14.72]
[1720892127935,49.20177378,140.19,140.15,14.72]
[1720892128116,59.72,140.21,140.15,14.72]
[1720892128318,4.20166776,140.2,140.16,14.72]
[1720892128616,4.20167301,140.19,140.16,14.72]
[1720892128812,59.72,140.21,140.16,14.72]
[1720892129047,4.20167563,140.2,140.15,14.72]
[1720892129241,4.20167563,140.19,140.15,14.72]
[1720892129444,4.20167563,140.2,140.16,14.72]
[1720892131419,4.20167563,140.2,140.17,14.72]
[1720892131920,10.0,140.2,140.1,16.4228]
[1720892132145,49.20207871,140.19,140.15,14.72]
[1720892132330,14.20119805,140.18,140.1,16.4228]
[1720892132521,49.1997432,140.17,140.12,14.72]
[1720892132723,59.72,140.17,140.1,16.4228]
[1720892132922,4.19905404,140.16,140.11,14.72]
[1720892133123,59.72,140.17,140.11,14.72]
[1720892133124,4.19905404,140.15,140.11,14.72]
[1720892133335,59.72,140.17,140.11,14.72]
[1720892133643,4.19653059,140.16,140.11,14.72]
[1720892133854,4.19653059,140.15,140.11,14.72]
[1720892134022,4.19653059,140.16,140.11,14.72]
[1720892134531,59.72,140.17,140.11,14.72]
[1720892134719,4.19711922,140.16,140.11,14.72]
[1720892134921,59.72,140.17,140.11,14.72]
[1720892135127,14.19711922,140.16,140.11,14.72]
[1720892135328,45.0,140.15,140.11,14.72]
[1720892136639,45.0,140.16,140.12,14.72]
[1720892141653,55.0,140.16,140.12,14.72]
[1720892141842,55.0,140.16,140.11,14.72]
[1720892142643,4.1964992,140.15,140.11,14.72]
[1720892142948,45.0,140.16,140.12,14.72]
[1720892143531,24.72,140.18,140.13,14.72]
[1720892143848,4.19809445,140.17,140.13,14.72]
[1720892144155,24.72,140.18,140.13,14.72]
[1720892144450,10.0,140.18,140.13,14.72]
[1720892144658,4.19880785,140.17,140.13,14.72]
[1720892144837,10.0,140.18,140.13,14.72]
[1720892145139,49.19890601,140.17,140.13,14.72]
[1720892145334,45.0,140.17,140.13,14.72]
[1720892147449,4.19729335,140.16,140.12,14.72]
[1720892147656,45.0,140.17,140.12,14.72]
[1720892147860,4.19759311,140.16,140.12,14.72]
[1720892148053,59.72,140.17,140.12,14.72]
[1720892148258,4.19751729,140.16,140.12,14.72]
[1720892148469,59.72,140.17,140.12,14.72]
[1720892148962,4.19739152,140.16,140.12,14.72]
[1720892149265,59.72,140.17,140.12,14.72]
[1720892149458,4.19729073,140.16,140.12,14.72]
[1720892149662,59.72,140.17,140.12,14.72]
[1720892149861,4.19769128,140.16,140.12,14.72]
[1720892150056,59.72,140.17,140.12,14.72]
[1720892150261,4.19789549,140.16,140.12,14.72]
[1720892150468,59.72,140.17,140.12,14.72]
[1720892150664,4.19789549,140.16,140.13,14.72]
[1720892150853,45.0,140.17,140.13,14.72]
[1720892151575,45.0,140.18,140.13,14.72]
[1720892151870,4.1990068,140.17,140.13,14.72]
[1720892152067,16.5809,140.22,140.14,14.72]
[1720892152272,4.20033364,140.2,140.15,14.72]
[1720892152460,4.20033364,140.19,140.15,14.72]
[1720892152766,4.20056031,140.18,140.15,14.72]
[1720892152974,10.0,140.19,140.14,14.72]
[1720892153183,4.20049201,140.18,140.14,14.72]
[1720892153353,26.2143,140.21,140.15,14.72]
[1720892153552,18.92055243,140.2,140.15,14.72]
[1720892153868,4.20055243,140.19,140.15,14.72]
[1720892154251,4.20055243,140.18,140.15,14.72]
[1720892154451,4.20055243,140.2,140.15,14.72]
[1720892154657,49.20062336,140.19,140.15,14.72]
[1720892154857,4.20062073,140.18,140.15,14.72]
[1720892155072,45.0,140.19,140.15,14.72]
[1720892155269,59.72,140.2,140.15,14.72]
[1720892155475,14.72,140.18,140.13,14.72]
[1720892155693,59.20045953,140.17,140.11,16.41]
[1720892155857,18.92045953,140.16,140.11,16.41]
[1720892156173,10.0,140.14,140.05,22.6607]
[1720892156379,24.72,140.14,140.08,14.72]
[1720892156551,49.19377583,140.13,140.09,14.72]
[1720892156875,45.0,140.13,140.09,14.72]
[1720892159171,59.72,140.13,140.05,22.6607]
[1720892159557,59.72,140.13,140.07,14.72]
[1720892160171,14.72,140.12,140.07,14.72]
[1720892160369,45.0,140.11,140.07,14.72]
[1720892166466,24.72,140.1,140.05,16.41]
[1720892166668,45.0,140.09,140.04,14.72]
[1720892167263,59.72,140.09,140.01,22.6607]
[1720892167463,59.72,140.09,140.04,14.72]
[1720892167771,45.0,140.09,140.04,14.72]
[1720892167980,59.72,140.09,140.04,14.72]
[1720892168200,59.72,140.09,140.01,16.41]
[1720892168486,14.72,140.08,140.02,14.72]
[1720892168680,45.0,140.07,140.02,14.72]
[1720892170469,45.0,140.07,140.01,16.41]
[1720892170676,45.0,140.07,140.02,14.72]
[1720892170877,45.0,140.07,140.01,16.41]
[1720892171098,45.0,140.07,140.02,14.72]
[1720892171280,45.0,140.07,140.03,14.72]
[1720892172380,45.0,140.07,140.01,16.41]
[1720892172579,45.0,140.07,140.03,14.72]
[1720892179889,14.72,140.09,140.04,14.72]
[1720892180085,45.0,140.08,140.04,14.72]
[1720892180410,69.72,140.08,140.02,14.72]
[1720892180920,24.72,140.13,140.07,14.72]
[1720892181218,24.72,140.13,140.03,1.42819172]
[1720892181219,36.6643,140.14,140.08,14.72]
[1720892181892,36.6643,140.14,140.02,6.3816]
[1720892181893,21.9443,140.14,140.09,14.72]
[1720892182081,21.9443,140.14,140.06,16.3785]
[1720892182082,6.4698,140.14,140.1,14.72]
[1720892183282,6.4698,140.14,140.06,16.3785]
[1720892183483,45.0,140.13,140.06,16.3785]
[1720892183682,45.0,140.13,140.08,14.72]
[1720892183984,45.0,140.13,140.06,16.3785]
[1720892184405,59.72,140.13,140.07,14.72]
[1720892185213,59.72,140.13,140.08,14.72]
[1720892186008,14.72,140.12,140.02,22.7601]
[1720892186206,59.72,140.11,140.06,14.72]
[1720892186519,45.0,140.1,140.05,14.72]
[1720892187405,55.0,140.1,140.02,22.7601]
[1720892187610,55.0,140.1,140.05,14.72]
[1720892187791,45.0,140.1,140.05,14.72]
[1720892188802,55.0,140.1,140.03,1.42796324]
[1720892188994,69.72,140.1,140.02,16.3785]
[1720892189199,69.72,140.1,140.04,14.72]
[1720892189517,45.0,140.1,140.05,14.72]
[1720892189710,45.0,140.11,140.05,14.72]
[1720892189907,14.72,140.1,140.05,14.72]
[1720892190114,45.0,140.09,140.05,14.72]
[1720892190921,45.0,140.09,140.04,14.72]
[1720892192012,45.0,140.09,140.02,16.3785]
[1720892192205,45.0,140.09,140.04,14.72]
[1720892193011,45.0,140.09,140.05,14.72]
[1720892193405,45.0,140.09,140.06,14.72]
[1720892193718,45.0,140.1,140.06,14.72]
[1720892194398,45.0,140.1,140.07,14.72]
[1720892194712,45.0,140.11,140.07,14.72]
[1720892196517,30.1945,140.13,140.07,14.72]
[1720892196700,4.18953652,140.12,140.08,14.72]
[1720892196901,15.4745,140.13,140.08,14.72]
[1720892197210,4.18943567,140.12,140.08,14.72]
[1720892197411,15.4745,140.13,140.08,14.72]
[1720892197622,4.18984347,140.12,140.08,14.72]
[1720892197823,21.1898,140.14,140.08,14.72]
[1720892198013,49.18969758,140.13,140.09,14.72]
[1720892198208,45.0,140.13,140.09,14.72]
[1720892201099,4.19242079,140.12,140.09,14.72]
[1720892201299,45.0,140.13,140.09,14.72]
[1720892201823,6.4698,140.14,140.09,14.72]
[1720892202007,4.19353149,140.13,140.11,14.72]
[1720892202209,14.72,140.16,140.11,14.72]
[1720892202531,49.19383926,140.15,140.11,14.72]
[1720892202710,4.19383926,140.14,140.11,14.72]
[1720892202914,4.19383926,140.14,140.06,16.2772]
[1720892202915,4.19383926,140.14,140.1,14.72]
[1720892204030,4.19383926,140.14,140.06,16.2772]
[1720892204031,45.0,140.13,140.09,14.72]
[1720892204211,4.19261856,140.12,140.09,14.72]
[1720892204414,45.0,140.13,140.08,14.72]
[1720892204725,4.19210052,140.12,140.09,14.72]
[1720892204928,45.0,140.13,140.09,14.72]
[1720892205120,4.19273868,140.12,140.1,14.72]
[1720892205321,45.0,140.14,140.1,14.72]
[1720892205630,4.19332962,140.13,140.1,14.72]
[1720892205831,45.0,140.14,140.1,14.72]
[1720892206125,4.19333225,140.13,140.1,14.72]
[1720892206329,45.0,140.14,140.1,14.72]
[1720892206528,4.19343313,140.13,140.1,14.72]
[1720892206829,45.0,140.14,140.1,14.72]
[1720892207009,4.19343313,140.13,140.1,14.72]
[1720892207204,45.0,140.14,140.1,14.72]